[Event "Titled Tuesday Blitz August 3 2021"]
[White "Yoo, Christopher Woojin"]
[Black "Quispe Arteaga, Gabriel"]
[WhiteFideId "30909694"]
[BlackFideId "32059809"]
[WhiteElo "2105"]
[BlackElo "2172"]
[Result "1/2-1/2"]
[Round "03"]
[TimeControl "180+1"]
[Date "2021.08.03"]
[WhiteClock "0:00:03"]
[BlackClock "0:00:03"]

1. e4 {[%clk 0:03:00]}  c5 {[%clk 0:02:40]} 2. Nf3 {[%clk 0:03:00]}  e6 {[%clk 0:02:35]} 3. b3 {[%clk 0:02:57]}  Nc6 {[%clk 0:02:33]} 4. Bb2 {[%clk 0:02:57]}  a6 {[%clk 0:02:33]} 5. d4 {[%clk 0:02:44]}  cxd4 {[%clk 0:02:32]} 6. Nxd4 {[%clk 0:02:44]}  Qf6 {[%clk 0:02:32]} 7. Be2 {[%clk 0:02:17]}  Bc5 {[%clk 0:02:30]} 8. c3 {[%clk 0:02:16]}  Nge7 {[%clk 0:02:26]} 9. O-O {[%clk 0:02:16]}  O-O {[%clk 0:02:24]} 10. Na3 {[%clk 0:02:06]}  d5 {[%clk 0:02:18]} 11. exd5 {[%clk 0:01:59]}  exd5 {[%clk 0:02:18]} 12. Nac2 {[%clk 0:01:57]}  Nxd4 {[%clk 0:02:11]} 13. Nxd4 {[%clk 0:01:56]}  Bxd4 {[%clk 0:02:11]} 14. Qxd4 {[%clk 0:01:49]}  Qxd4 {[%clk 0:02:11]} 15. cxd4 {[%clk 0:01:50]}  Nc6 {[%clk 0:02:09]} 16. Rac1 {[%clk 0:01:46]}  Be6 {[%clk 0:02:07]} 17. a3 {[%clk 0:01:44]}  Rfc8 {[%clk 0:02:03]} 18. b4 {[%clk 0:01:44]}  Ne7 {[%clk 0:01:27]} 19. Rc5 {[%clk 0:01:38]}  Nf5 {[%clk 0:00:45]} 20. Rfc1 {[%clk 0:01:27]}  Nd6 {[%clk 0:00:44]} 21. Rxc8+ {[%clk 0:01:13]}  Rxc8 {[%clk 0:00:44]} 22. Rxc8+ {[%clk 0:01:10]}  Nxc8 {[%clk 0:00:43]} 23. b5 {[%clk 0:00:52]}  axb5 {[%clk 0:00:40]} 24. Bxb5 {[%clk 0:00:53]}  Nd6 {[%clk 0:00:40]} 25. Bd3 {[%clk 0:00:48]}  Bf5 {[%clk 0:00:34]} 26. Bxf5 {[%clk 0:00:44]}  Nxf5 {[%clk 0:00:35]} 27. Kf1 {[%clk 0:00:45]}  f6 {[%clk 0:00:34]} 28. Ke2 {[%clk 0:00:44]}  Kf7 {[%clk 0:00:35]} 29. Kd3 {[%clk 0:00:44]}  Ke6 {[%clk 0:00:35]} 30. Kc3 {[%clk 0:00:44]}  Kd7 {[%clk 0:00:36]} 31. Kb4 {[%clk 0:00:44]}  Kc6 {[%clk 0:00:36]} 32. a4 {[%clk 0:00:43]}  Nh4 {[%clk 0:00:36]} 33. g3 {[%clk 0:00:42]}  Nf3 {[%clk 0:00:36]} 34. h4 {[%clk 0:00:42]}  Nd2 {[%clk 0:00:31]} 35. Bc1 {[%clk 0:00:40]}  Ne4 {[%clk 0:00:28]} 36. Be3 {[%clk 0:00:40]}  h5 {[%clk 0:00:28]} 37. a5 {[%clk 0:00:26]}  Nd6 {[%clk 0:00:27]} 38. f3 {[%clk 0:00:22]}  Nf5 {[%clk 0:00:18]} 39. Bf2 {[%clk 0:00:22]}  Nd6 {[%clk 0:00:18]} 40. g4 {[%clk 0:00:20]}  g6 {[%clk 0:00:19]} 41. Bg3 {[%clk 0:00:15]}  Nb5 {[%clk 0:00:19]} 42. Bf2 {[%clk 0:00:15]}  Nd6 {[%clk 0:00:16]} 43. Be3 {[%clk 0:00:15]}  Nb5 {[%clk 0:00:14]} 44. Kb3 {[%clk 0:00:10]}  Nc7 {[%clk 0:00:14]} 45. Ka4 {[%clk 0:00:09]}  Ne6 {[%clk 0:00:14]} 46. Kb4 {[%clk 0:00:09]}  Nc7 {[%clk 0:00:13]} 47. Bh6 {[%clk 0:00:06]}  Ne6 {[%clk 0:00:12]} 48. Be3 {[%clk 0:00:06]}  f5 {[%clk 0:00:12]} 49. gxf5 {[%clk 0:00:02]}  gxf5 {[%clk 0:00:13]} 50. f4 {[%clk 0:00:03]}  Nf8 {[%clk 0:00:11]} 51. Bf2 {[%clk 0:00:03]}  Ng6 {[%clk 0:00:11]} 52. Bg3 {[%clk 0:00:03]}  Ne7 {[%clk 0:00:11]} 53. Bf2 {[%clk 0:00:03]}  Nc8 {[%clk 0:00:12]} 54. Be3 {[%clk 0:00:03]}  Nd6 {[%clk 0:00:12]} 55. Bf2 {[%clk 0:00:03]}  Ne4 {[%clk 0:00:12]} 56. Be3 {[%clk 0:00:03]}  Ng3 {[%clk 0:00:09]} 57. Bf2 {[%clk 0:00:03]}  Ne2 {[%clk 0:00:08]} 58. Be3 {[%clk 0:00:03]}  Ng3 {[%clk 0:00:08]} 59. Bf2 {[%clk 0:00:03]}  Ne4 {[%clk 0:00:08]} 60. Be3 {[%clk 0:00:03]}  Nd6 {[%clk 0:00:05]} 61. Bf2 {[%clk 0:00:03]}  Ne4 {[%clk 0:00:03]} 1/2-1/2


[Site "https://www.chess.com"]

[Event "Titled Tuesday Blitz August 3 2021"]
[White "Alavi, Sayed Javad"]
[Black "Praggnanandhaa R"]
[WhiteFideId "12500607"]
[BlackFideId "25059530"]
[WhiteElo "2495"]
[BlackElo "2555"]
[Result "0-1"]
[Round "04"]
[TimeControl "180+1"]
[Date "2021.08.03"]
[WhiteClock "0:00:01"]
[BlackClock "0:00:02"]

1. e4 {[%clk 0:03:00]}  Nc6 {[%clk 0:02:57]} 2. d4 {[%clk 0:02:59]}  d5 {[%clk 0:02:57]} 3. e5 {[%clk 0:02:59]}  Bf5 {[%clk 0:02:57]} 4. c3 {[%clk 0:02:58]}  e6 {[%clk 0:02:56]} 5. Bd3 {[%clk 0:02:58]}  Bxd3 {[%clk 0:02:56]} 6. Qxd3 {[%clk 0:02:59]}  Qd7 {[%clk 0:02:52]} 7. a4 {[%clk 0:02:53]}  Nge7 {[%clk 0:02:50]} 8. a5 {[%clk 0:02:48]}  a6 {[%clk 0:02:50]} 9. Nf3 {[%clk 0:02:45]}  h5 {[%clk 0:02:50]} 10. O-O {[%clk 0:02:37]}  Nf5 {[%clk 0:02:49]} 11. Bg5 {[%clk 0:02:28]}  Be7 {[%clk 0:02:47]} 12. Nbd2 {[%clk 0:02:28]}  f6 {[%clk 0:02:42]} 13. Bf4 {[%clk 0:02:18]}  O-O-O {[%clk 0:02:36]} 14. b4 {[%clk 0:02:15]}  Na7 {[%clk 0:02:36]} 15. Rfe1 {[%clk 0:02:12]}  Rde8 {[%clk 0:02:31]} 16. Nb3 {[%clk 0:02:05]}  Nb5 {[%clk 0:02:29]} 17. exf6 {[%clk 0:01:59]}  gxf6 {[%clk 0:02:29]} 18. Nc5 {[%clk 0:01:59]}  Bxc5 {[%clk 0:02:29]} 19. bxc5 {[%clk 0:02:00]}  Rhg8 {[%clk 0:02:26]} 20. Bg3 {[%clk 0:01:33]}  Rg4 {[%clk 0:02:16]} 21. Re2 {[%clk 0:01:14]}  h4 {[%clk 0:02:09]} 22. Rae1 {[%clk 0:01:08]}  Re4 {[%clk 0:01:42]} 23. Nxh4 {[%clk 0:00:59]}  Nxh4 {[%clk 0:01:41]} 24. Rxe4 {[%clk 0:00:57]}  dxe4 {[%clk 0:01:39]} 25. Rxe4 {[%clk 0:00:58]}  Nf5 {[%clk 0:01:37]} 26. h4 {[%clk 0:00:46]}  e5 {[%clk 0:01:33]} 27. d5 {[%clk 0:00:44]}  Nxg3 {[%clk 0:01:28]} 28. fxg3 {[%clk 0:00:44]}  f5 {[%clk 0:01:28]} 29. Re3 {[%clk 0:00:41]}  e4 {[%clk 0:01:28]} 30. Qd2 {[%clk 0:00:41]}  Na3 {[%clk 0:01:26]} 31. c6 {[%clk 0:00:29]}  bxc6 {[%clk 0:01:22]} 32. Qe2 {[%clk 0:00:29]}  Qxd5 {[%clk 0:01:19]} 33. Qxa6+ {[%clk 0:00:27]}  Kd7 {[%clk 0:01:19]} 34. Qf1 {[%clk 0:00:14]}  Nc4 {[%clk 0:01:06]} 35. Re1 {[%clk 0:00:13]}  Kc8 {[%clk 0:01:04]} 36. a6 {[%clk 0:00:11]}  e3 {[%clk 0:00:50]} 37. Qf4 {[%clk 0:00:06]}  e2 {[%clk 0:00:23]} 38. Kh2 {[%clk 0:00:06]}  Re4 {[%clk 0:00:12]} 39. Qg5 {[%clk 0:00:03]}  Kb8 {[%clk 0:00:10]} 40. Qg7 {[%clk 0:00:03]}  Qd6 {[%clk 0:00:04]} 41. Qh8+ {[%clk 0:00:03]}  Ka7 {[%clk 0:00:03]} 42. Rb1 {[%clk 0:00:03]}  Nb6 {[%clk 0:00:02]} 43. Rxb6 {[%clk 0:00:01]}  cxb6 {[%clk 0:00:03]} 44. Qc8 {[%clk 0:00:01]}  Re7 {[%clk 0:00:02]} 0-1


[Site "https://www.chess.com"]

[Event "Titled Tuesday Blitz August 3 2021"]
[White "Altman, Joshua"]
[Black "Stribuk, Artiom"]
[WhiteFideId "426210"]
[BlackFideId "13515659"]
[WhiteElo "1945"]
[BlackElo "2224"]
[Result "0-1"]
[Round "04"]
[TimeControl "180+1"]
[Date "2021.08.03"]
[WhiteClock "0:00:59"]
[BlackClock "0:00:47"]

1. d4 {[%clk 0:03:00]}  Nf6 {[%clk 0:02:59]} 2. c4 {[%clk 0:03:01]}  g6 {[%clk 0:02:59]} 3. Nc3 {[%clk 0:03:01]}  d5 {[%clk 0:03:00]} 4. Bg5 {[%clk 0:03:00]}  Bg7 {[%clk 0:02:57]} 5. e3 {[%clk 0:03:01]}  c6 {[%clk 0:02:52]} 6. Nf3 {[%clk 0:03:00]}  O-O {[%clk 0:02:52]} 7. Bd3 {[%clk 0:02:58]}  dxc4 {[%clk 0:02:44]} 8. Bxc4 {[%clk 0:02:59]}  b5 {[%clk 0:02:44]} 9. Bd3 {[%clk 0:02:59]}  Bb7 {[%clk 0:02:43]} 10. O-O {[%clk 0:02:58]}  Nbd7 {[%clk 0:02:44]} 11. Rc1 {[%clk 0:02:55]}  a6 {[%clk 0:02:36]} 12. h3 {[%clk 0:02:49]}  c5 {[%clk 0:02:29]} 13. dxc5 {[%clk 0:02:30]}  Nxc5 {[%clk 0:02:27]} 14. Be2 {[%clk 0:02:30]}  Qb6 {[%clk 0:02:15]} 15. Bxf6 {[%clk 0:02:10]}  Bxf6 {[%clk 0:02:14]} 16. Nd5 {[%clk 0:02:11]}  Bxd5 {[%clk 0:02:14]} 17. Qxd5 {[%clk 0:02:11]}  Na4 {[%clk 0:02:15]} 18. Rc6 {[%clk 0:02:03]}  Qb7 {[%clk 0:01:58]} 19. e4 {[%clk 0:01:39]}  Rfd8 {[%clk 0:01:45]} 20. Rd6 {[%clk 0:01:31]}  Qxd5 {[%clk 0:01:44]} 21. Rxd5 {[%clk 0:01:32]}  Rxd5 {[%clk 0:01:44]} 22. exd5 {[%clk 0:01:33]}  Bxb2 {[%clk 0:01:40]} 23. Rb1 {[%clk 0:01:30]}  Ba3 {[%clk 0:01:30]} 24. Rb3 {[%clk 0:01:22]}  Bd6 {[%clk 0:01:22]} 25. Nd4 {[%clk 0:01:20]}  b4 {[%clk 0:01:06]} 26. Nc6 {[%clk 0:01:18]}  Nc3 {[%clk 0:01:05]} 27. Bf3 {[%clk 0:01:17]}  a5 {[%clk 0:01:06]} 28. Rb2 {[%clk 0:01:15]}  Kf8 {[%clk 0:01:01]} 29. g3 {[%clk 0:01:15]}  a4 {[%clk 0:00:55]} 30. Nxb4 {[%clk 0:01:11]}  a3 {[%clk 0:00:51]} 31. Rb3 {[%clk 0:01:11]}  Bxb4 {[%clk 0:00:49]} 32. Rxb4 {[%clk 0:01:12]}  Nxa2 {[%clk 0:00:50]} 33. Rb3 {[%clk 0:01:09]}  Nc1 {[%clk 0:00:48]} 34. Rb1 {[%clk 0:01:07]}  a2 {[%clk 0:00:46]} 35. Rxc1 {[%clk 0:01:07]}  a1=Q {[%clk 0:00:44]} 36. Rxa1 {[%clk 0:01:08]}  Rxa1+ {[%clk 0:00:45]} 37. Kg2 {[%clk 0:01:08]}  Ra2 {[%clk 0:00:44]} 38. Be4 {[%clk 0:01:07]}  Rd2 {[%clk 0:00:45]} 39. Bf3 {[%clk 0:01:08]}  Ke8 {[%clk 0:00:45]} 40. g4 {[%clk 0:01:06]}  Kd7 {[%clk 0:00:46]} 41. Kg3 {[%clk 0:01:07]}  g5 {[%clk 0:00:46]} 42. Be4 {[%clk 0:01:05]}  h6 {[%clk 0:00:46]} 43. f3 {[%clk 0:01:04]}  Kd6 {[%clk 0:00:47]} 44. h4 {[%clk 0:01:02]}  Ke5 {[%clk 0:00:47]} 45. hxg5 {[%clk 0:01:00]}  hxg5 {[%clk 0:00:48]} 46. Kh3 {[%clk 0:00:59]}  Re2 {[%clk 0:00:46]} 47. Kg3 {[%clk 0:00:59]}  Rxe4 {[%clk 0:00:46]} 48. fxe4 {[%clk 0:00:59]}  Kxe4 {[%clk 0:00:47]} 49. Kf2 {[%clk 0:00:59]}  Kxd5 {[%clk 0:00:47]} 0-1


[Site "https://www.chess.com"]

[Event "Titled Tuesday Blitz August 3 2021"]
[White "Ambartsumova, Karina"]
[Black "Mikhailovsky, Vladimir"]
[WhiteFideId "4166299"]
[BlackFideId "34105414"]
[WhiteElo "2539"]
[BlackElo "2758"]
[Result "1/2-1/2"]
[Round "04"]
[TimeControl "180+1"]
[Date "2021.08.03"]
[WhiteClock "0:00:10"]
[BlackClock "0:00:02"]

1. c4 {[%clk 0:03:00]}  e6 {[%clk 0:02:53]} 2. Nc3 {[%clk 0:02:58]}  d5 {[%clk 0:02:54]} 3. e3 {[%clk 0:02:55]}  Nf6 {[%clk 0:02:53]} 4. Nf3 {[%clk 0:02:55]}  b6 {[%clk 0:02:51]} 5. b3 {[%clk 0:02:53]}  Bb7 {[%clk 0:02:51]} 6. Bb2 {[%clk 0:02:54]}  Bd6 {[%clk 0:02:50]} 7. g3 {[%clk 0:02:43]}  O-O {[%clk 0:02:48]} 8. Bg2 {[%clk 0:02:44]}  dxc4 {[%clk 0:02:20]} 9. bxc4 {[%clk 0:02:43]}  e5 {[%clk 0:02:21]} 10. d3 {[%clk 0:02:34]}  Nbd7 {[%clk 0:01:52]} 11. O-O {[%clk 0:02:25]}  Nc5 {[%clk 0:01:52]} 12. d4 {[%clk 0:02:14]}  exd4 {[%clk 0:01:52]} 13. exd4 {[%clk 0:02:14]}  Nce4 {[%clk 0:01:52]} 14. d5 {[%clk 0:02:07]}  Re8 {[%clk 0:01:25]} 15. Qc2 {[%clk 0:01:55]}  Nxc3 {[%clk 0:00:57]} 16. Qxc3 {[%clk 0:01:45]}  c6 {[%clk 0:00:57]} 17. Rad1 {[%clk 0:01:11]}  cxd5 {[%clk 0:00:56]} 18. cxd5 {[%clk 0:00:51]}  Rc8 {[%clk 0:00:54]} 19. Qd3 {[%clk 0:00:41]}  Nd7 {[%clk 0:00:41]} 20. h4 {[%clk 0:00:30]}  h6 {[%clk 0:00:40]} 21. Rfe1 {[%clk 0:00:21]}  Qc7 {[%clk 0:00:20]} 22. Qf5 {[%clk 0:00:19]}  Nc5 {[%clk 0:00:13]} 23. Qg4 {[%clk 0:00:16]}  Bf8 {[%clk 0:00:10]} 24. d6 {[%clk 0:00:10]}  Qd7 {[%clk 0:00:10]} 25. Bh3 {[%clk 0:00:05]}  Qxg4 {[%clk 0:00:09]} 26. Bxg4 {[%clk 0:00:05]}  Rxe1+ {[%clk 0:00:09]} 27. Nxe1 {[%clk 0:00:05]}  Rd8 {[%clk 0:00:10]} 28. d7 {[%clk 0:00:05]}  Bc6 {[%clk 0:00:10]} 29. Nf3 {[%clk 0:00:03]}  Be7 {[%clk 0:00:06]} 30. Ne5 {[%clk 0:00:03]}  Ba4 {[%clk 0:00:06]} 31. Rd2 {[%clk 0:00:02]}  Bf6 {[%clk 0:00:06]} 32. Nc4 {[%clk 0:00:01]}  Bxb2 {[%clk 0:00:05]} 33. Nxb2 {[%clk 0:00:02]}  Bxd7 {[%clk 0:00:05]} 34. Nc4 {[%clk 0:00:02]}  Kf8 {[%clk 0:00:05]} 35. Ne5 {[%clk 0:00:02]}  Ke7 {[%clk 0:00:06]} 36. Bxd7 {[%clk 0:00:02]}  Rxd7 {[%clk 0:00:03]} 37. Nc6+ {[%clk 0:00:02]}  Ke6 {[%clk 0:00:03]} 38. Rxd7 {[%clk 0:00:03]}  Kxd7 {[%clk 0:00:03]} 39. Nxa7 {[%clk 0:00:04]}  Na4 {[%clk 0:00:03]} 40. Nb5 {[%clk 0:00:04]}  Kc6 {[%clk 0:00:04]} 41. Nd4+ {[%clk 0:00:04]}  Kd5 {[%clk 0:00:04]} 42. Nf5 {[%clk 0:00:05]}  Nc3 {[%clk 0:00:04]} 43. a3 {[%clk 0:00:04]}  Nb1 {[%clk 0:00:02]} 44. Nxg7 {[%clk 0:00:05]}  Nxa3 {[%clk 0:00:02]} 45. g4 {[%clk 0:00:06]}  b5 {[%clk 0:00:03]} 46. g5 {[%clk 0:00:06]}  hxg5 {[%clk 0:00:04]} 47. h5 {[%clk 0:00:07]}  b4 {[%clk 0:00:05]} 48. h6 {[%clk 0:00:07]}  b3 {[%clk 0:00:05]} 49. h7 {[%clk 0:00:07]}  b2 {[%clk 0:00:06]} 50. h8=Q {[%clk 0:00:07]}  b1=Q+ {[%clk 0:00:07]} 51. Kh2 {[%clk 0:00:07]}  Qc2 {[%clk 0:00:06]} 52. Qd8+ {[%clk 0:00:07]}  Kc4 {[%clk 0:00:04]} 53. Qc7+ {[%clk 0:00:07]}  Kb3 {[%clk 0:00:05]} 54. Qb7+ {[%clk 0:00:06]}  Ka2 {[%clk 0:00:05]} 55. Qxf7+ {[%clk 0:00:06]}  Kb2 {[%clk 0:00:05]} 56. Qf6+ {[%clk 0:00:07]}  Kb1 {[%clk 0:00:03]} 57. Qxg5 {[%clk 0:00:07]}  Qxf2+ {[%clk 0:00:03]} 58. Qg2 {[%clk 0:00:07]}  Qh4+ {[%clk 0:00:02]} 59. Kg1 {[%clk 0:00:08]}  Qd4+ {[%clk 0:00:02]} 60. Kh2 {[%clk 0:00:08]}  Nc2 {[%clk 0:00:03]} 61. Qg1+ {[%clk 0:00:09]}  Qxg1+ {[%clk 0:00:02]} 62. Kxg1 {[%clk 0:00:10]} 1/2-1/2


[Site "https://www.chess.com"]

[Event "Titled Tuesday Blitz August 3 2021"]
[White "Araujo Filho, Luiz Antonio Coel"]
[Black "Damjanovic, Vladimir"]
[WhiteFideId "2130661"]
[BlackFideId "903795"]
[WhiteElo "2221"]
[BlackElo "2374"]
[Result "0-1"]
[Round "04"]
[TimeControl "180+1"]
[Date "2021.08.03"]
[WhiteClock "0:00:01"]
[BlackClock "0:00:48"]

1. d4 {[%clk 0:03:00]}  Nf6 {[%clk 0:02:59]} 2. Nf3 {[%clk 0:03:01]}  g6 {[%clk 0:02:58]} 3. c4 {[%clk 0:03:01]}  Bg7 {[%clk 0:02:56]} 4. Nc3 {[%clk 0:03:01]}  O-O {[%clk 0:02:56]} 5. e4 {[%clk 0:03:01]}  d6 {[%clk 0:02:57]} 6. Be2 {[%clk 0:03:02]}  Na6 {[%clk 0:02:58]} 7. O-O {[%clk 0:03:01]}  e5 {[%clk 0:02:58]} 8. d5 {[%clk 0:02:49]}  Nc5 {[%clk 0:02:58]} 9. Qc2 {[%clk 0:02:50]}  a5 {[%clk 0:02:59]} 10. h3 {[%clk 0:02:46]}  Nh5 {[%clk 0:02:58]} 11. Re1 {[%clk 0:02:40]}  f5 {[%clk 0:02:54]} 12. Nd2 {[%clk 0:01:32]}  Nf6 {[%clk 0:02:42]} 13. f3 {[%clk 0:01:21]}  Nh5 {[%clk 0:02:39]} 14. exf5 {[%clk 0:01:13]}  gxf5 {[%clk 0:02:34]} 15. Nf1 {[%clk 0:01:12]}  Nf4 {[%clk 0:02:33]} 16. Bxf4 {[%clk 0:01:07]}  exf4 {[%clk 0:02:34]} 17. Rad1 {[%clk 0:00:58]}  Kh8 {[%clk 0:02:30]} 18. a3 {[%clk 0:00:56]}  a4 {[%clk 0:02:29]} 19. Qd2 {[%clk 0:00:44]}  Be5 {[%clk 0:02:27]} 20. Nb5 {[%clk 0:00:40]}  Rg8 {[%clk 0:02:23]} 21. Bd3 {[%clk 0:00:20]}  Bd7 {[%clk 0:02:17]} 22. Nc3 {[%clk 0:00:17]}  Qh4 {[%clk 0:02:15]} 23. Kh1 {[%clk 0:00:15]}  Rg7 {[%clk 0:02:09]} 24. Bc2 {[%clk 0:00:13]}  Rag8 {[%clk 0:02:07]} 25. Re2 {[%clk 0:00:14]}  Rg6 {[%clk 0:01:51]} 26. Nh2 {[%clk 0:00:13]}  Rg3 {[%clk 0:01:41]} 27. Rde1 {[%clk 0:00:06]}  Be8 {[%clk 0:01:30]} 28. Bxf5 {[%clk 0:00:05]}  Qf6 {[%clk 0:01:25]} 29. Bb1 {[%clk 0:00:04]}  h5 {[%clk 0:01:24]} 30. Qc2 {[%clk 0:00:04]}  Bg6 {[%clk 0:01:24]} 31. Qd2 {[%clk 0:00:04]}  Nb3 {[%clk 0:01:25]} 32. Qd1 {[%clk 0:00:04]}  Nc5 {[%clk 0:01:19]} 33. Qd2 {[%clk 0:00:03]}  Bxb1 {[%clk 0:01:17]} 34. Rxb1 {[%clk 0:00:02]}  Qf5 {[%clk 0:01:17]} 35. Rbe1 {[%clk 0:00:02]}  Nb3 {[%clk 0:01:15]} 36. Qd1 {[%clk 0:00:01]}  Nd4 {[%clk 0:01:16]} 37. Rf2 {[%clk 0:00:01]}  Bf6 {[%clk 0:00:56]} 38. Ne4 {[%clk 0:00:01]}  Be5 {[%clk 0:00:56]} 39. Qxa4 {[%clk 0:00:01]}  Nxf3 {[%clk 0:00:48]} 0-1


[Site "https://www.chess.com"]

[Event "Titled Tuesday Blitz August 3 2021"]
[White "AshotParvanyan"]
[Black "Belous, Vladimir"]
[BlackFideId "4174003"]
[WhiteElo "2531"]
[BlackElo "2853"]
[Result "1-0"]
[Round "04"]
[TimeControl "180+1"]
[Date "2021.08.03"]
[WhiteClock "0:00:03"]
[BlackClock "0:00:38"]

1. Nf3 {[%clk 0:03:00]}  c5 {[%clk 0:02:59]} 2. c4 {[%clk 0:03:00]}  g6 {[%clk 0:02:59]} 3. e4 {[%clk 0:02:58]}  Bg7 {[%clk 0:02:52]} 4. d4 {[%clk 0:02:58]}  Qa5+ {[%clk 0:02:53]} 5. Nc3 {[%clk 0:02:46]}  d6 {[%clk 0:02:50]} 6. Be2 {[%clk 0:02:01]}  Nc6 {[%clk 0:02:43]} 7. Be3 {[%clk 0:01:53]}  Bg4 {[%clk 0:02:39]} 8. d5 {[%clk 0:01:47]}  Bxf3 {[%clk 0:02:22]} 9. Bxf3 {[%clk 0:01:47]}  Nd4 {[%clk 0:02:21]} 10. O-O {[%clk 0:01:47]}  a6 {[%clk 0:02:10]} 11. a3 {[%clk 0:01:31]}  Nxf3+ {[%clk 0:01:53]} 12. Qxf3 {[%clk 0:01:30]}  Nf6 {[%clk 0:01:54]} 13. b4 {[%clk 0:01:05]}  cxb4 {[%clk 0:01:49]} 14. axb4 {[%clk 0:01:06]}  Qxb4 {[%clk 0:01:44]} 15. Na4 {[%clk 0:00:54]}  Nd7 {[%clk 0:01:27]} 16. Qd1 {[%clk 0:00:26]}  Qxc4 {[%clk 0:01:22]} 17. Rc1 {[%clk 0:00:21]}  Qxe4 {[%clk 0:01:14]} 18. Re1 {[%clk 0:00:15]}  O-O {[%clk 0:01:11]} 19. Bg5 {[%clk 0:00:13]}  Qb4 {[%clk 0:01:06]} 20. Bxe7 {[%clk 0:00:13]}  Rfe8 {[%clk 0:01:06]} 21. Rb1 {[%clk 0:00:11]}  Qa5 {[%clk 0:01:07]} 22. Rxb7 {[%clk 0:00:08]}  Nc5 {[%clk 0:00:52]} 23. Nxc5 {[%clk 0:00:07]}  Qxc5 {[%clk 0:00:52]} 24. Rf1 {[%clk 0:00:05]}  Be5 {[%clk 0:00:47]} 25. Qf3 {[%clk 0:00:04]}  Ra7 {[%clk 0:00:42]} 26. Bxd6 {[%clk 0:00:04]}  Bxh2+ {[%clk 0:00:38]} 27. Kh1 {[%clk 0:00:03]} 1-0


[Site "https://www.chess.com"]

[Event "Titled Tuesday Blitz August 3 2021"]
[White "Babazada, Khazar"]
[Black "Hansen, Eric"]
[WhiteFideId "13413554"]
[BlackFideId "2606771"]
[WhiteElo "2344"]
[BlackElo "2568"]
[Result "1-0"]
[Round "04"]
[TimeControl "180+1"]
[Date "2021.08.03"]
[WhiteClock "0:01:08"]
[BlackClock "0:00:02"]

1. Nf3 {[%clk 0:03:00]}  d5 {[%clk 0:02:56]} 2. g3 {[%clk 0:03:01]}  g6 {[%clk 0:02:50]} 3. Bg2 {[%clk 0:03:01]}  Bg7 {[%clk 0:02:51]} 4. O-O {[%clk 0:03:02]}  e5 {[%clk 0:02:51]} 5. d4 {[%clk 0:03:02]}  exd4 {[%clk 0:02:50]} 6. Nxd4 {[%clk 0:03:02]}  Ne7 {[%clk 0:02:50]} 7. Nb3 {[%clk 0:02:56]}  O-O {[%clk 0:02:50]} 8. Nc3 {[%clk 0:02:51]}  d4 {[%clk 0:02:41]} 9. Ne4 {[%clk 0:02:50]}  h6 {[%clk 0:02:42]} 10. e3 {[%clk 0:02:48]}  dxe3 {[%clk 0:02:37]} 11. Bxe3 {[%clk 0:02:49]}  Nbc6 {[%clk 0:02:34]} 12. Qc1 {[%clk 0:02:44]}  Nf5 {[%clk 0:01:52]} 13. Rd1 {[%clk 0:02:43]}  Qe8 {[%clk 0:01:04]} 14. Bc5 {[%clk 0:02:41]}  Nfe7 {[%clk 0:00:31]} 15. Qf4 {[%clk 0:02:37]}  f5 {[%clk 0:00:22]} 16. Nc3 {[%clk 0:02:29]}  Rf7 {[%clk 0:00:20]} 17. Re1 {[%clk 0:02:19]}  g5 {[%clk 0:00:16]} 18. Qd2 {[%clk 0:02:07]}  Qd7 {[%clk 0:00:13]} 19. Qe2 {[%clk 0:02:04]}  f4 {[%clk 0:00:12]} 20. Rad1 {[%clk 0:02:03]}  Qf5 {[%clk 0:00:07]} 21. Be4 {[%clk 0:01:54]}  f3 {[%clk 0:00:06]} 22. Qc4 {[%clk 0:01:52]}  Qe6 {[%clk 0:00:03]} 23. Qxe6 {[%clk 0:01:43]}  Bxe6 {[%clk 0:00:03]} 24. Bxc6 {[%clk 0:01:43]}  Bxb3 {[%clk 0:00:04]} 25. Bxb7 {[%clk 0:01:44]}  Rb8 {[%clk 0:00:03]} 26. axb3 {[%clk 0:01:44]}  Rxb7 {[%clk 0:00:02]} 27. Rxe7 {[%clk 0:01:45]}  Rxe7 {[%clk 0:00:02]} 28. Bxe7 {[%clk 0:01:46]}  g4 {[%clk 0:00:03]} 29. Bc5 {[%clk 0:01:42]}  h5 {[%clk 0:00:03]} 30. Rd8+ {[%clk 0:01:37]}  Kf7 {[%clk 0:00:03]} 31. Rd7+ {[%clk 0:01:37]}  Kg6 {[%clk 0:00:04]} 32. Nd5 {[%clk 0:01:36]}  Be5 {[%clk 0:00:04]} 33. Bd4 {[%clk 0:01:22]}  Bd6 {[%clk 0:00:04]} 34. Rg7+ {[%clk 0:01:17]}  Kf5 {[%clk 0:00:04]} 35. Ne3+ {[%clk 0:01:17]}  Ke6 {[%clk 0:00:02]} 36. Rg6+ {[%clk 0:01:11]}  Kd7 {[%clk 0:00:03]} 37. Rg5 {[%clk 0:01:11]}  Rb4 {[%clk 0:00:02]} 38. Bc3 {[%clk 0:01:10]}  Re4 {[%clk 0:00:02]} 39. Rxh5 {[%clk 0:01:08]} 1-0


[Site "https://www.chess.com"]

[Event "Titled Tuesday Blitz August 3 2021"]
[White "Batsuren, Dambasuren"]
[Black "Sliwicki, Damian"]
[WhiteFideId "4902920"]
[BlackFideId "1127128"]
[WhiteElo "2371"]
[BlackElo "2149"]
[Result "1-0"]
[Round "04"]
[TimeControl "180+1"]
[Date "2021.08.03"]
[WhiteClock "0:01:32"]
[BlackClock "0:01:24"]

1. d4 {[%clk 0:03:00]}  Nf6 {[%clk 0:02:55]} 2. c4 {[%clk 0:03:00]}  e6 {[%clk 0:02:54]} 3. Nf3 {[%clk 0:02:59]}  d5 {[%clk 0:02:54]} 4. Nc3 {[%clk 0:02:58]}  Bb4 {[%clk 0:02:53]} 5. cxd5 {[%clk 0:02:58]}  exd5 {[%clk 0:02:52]} 6. Bg5 {[%clk 0:02:59]}  Nbd7 {[%clk 0:02:52]} 7. e3 {[%clk 0:02:59]}  c5 {[%clk 0:02:51]} 8. Bd3 {[%clk 0:02:43]}  Qa5 {[%clk 0:02:48]} 9. O-O {[%clk 0:02:42]}  Bxc3 {[%clk 0:02:48]} 10. bxc3 {[%clk 0:02:43]}  c4 {[%clk 0:02:46]} 11. Bf5 {[%clk 0:02:38]}  O-O {[%clk 0:02:35]} 12. Qc2 {[%clk 0:02:36]}  g6 {[%clk 0:02:33]} 13. Bxd7 {[%clk 0:02:15]}  Nxd7 {[%clk 0:02:34]} 14. Nd2 {[%clk 0:02:14]}  Nb6 {[%clk 0:02:27]} 15. e4 {[%clk 0:01:59]}  dxe4 {[%clk 0:02:04]} 16. Nxe4 {[%clk 0:02:00]}  Bf5 {[%clk 0:02:01]} 17. Nf6+ {[%clk 0:01:59]}  Kg7 {[%clk 0:01:59]} 18. Qd2 {[%clk 0:01:53]}  h6 {[%clk 0:01:39]} 19. Bxh6+ {[%clk 0:01:53]}  Kxf6 {[%clk 0:01:38]} 20. Qg5+ {[%clk 0:01:40]}  Ke6 {[%clk 0:01:38]} 21. Rae1+ {[%clk 0:01:41]}  Kd7 {[%clk 0:01:32]} 22. Qe7+ {[%clk 0:01:34]}  Kc6 {[%clk 0:01:32]} 23. Bxf8 {[%clk 0:01:34]}  Bd3 {[%clk 0:01:27]} 24. Qd6+ {[%clk 0:01:31]}  Kb5 {[%clk 0:01:27]} 25. Re5+ {[%clk 0:01:31]}  Ka6 {[%clk 0:01:24]} 26. Rxa5+ {[%clk 0:01:32]} 1-0


[Site "https://www.chess.com"]